bitfinex-derivatives/quotes_ETHF0:USTF0_20210702
["timestamp","ask_amount","ask_price","bid_price","bid_amount"]
[1625256572808,4.6457,2092.2,2087.6,10.68345946]
[1625256572909,4.6457,2092.2,2089.0,2.34115983]
[1625256573258,4.6457,2092.2,2090.0,0.05]
[1625256573460,55.1821,2092.0,2090.7,56.8714]
[1625256573557,1.0,2091.9,2090.7,56.8714]
[1625256573659,3.6457,2092.2,2090.7,56.8714]
[1625256573809,1.0,2092.1,2090.7,56.8714]
[1625256574064,1.0,2092.1,2091.3,43.1184]
[1625256574164,3.6457,2092.2,2091.3,43.1184]
[1625256574266,2.20527,2091.7,2091.3,45.32367]
[1625256574467,2.20527,2091.7,2091.3,2.20527]
[1625256574917,2.20527,2091.7,2091.3,45.32777]
[1625256575134,1.0,2092.1,2091.3,45.32777]
[1625256575235,40.7037,2092.6,2091.3,47.77387]
[1625256575836,1.0,2092.5,2091.3,47.77387]
[1625256576284,3.20527,2092.5,2092.0,2.20527]
[1625256576385,2.20527,2092.5,2092.0,2.20527]
[1625256577344,2.20527,2092.5,2092.0,5.87307]
[1625256577691,2.20527,2092.5,2092.0,63.10357]
[1625256577995,2.20527,2092.5,2092.0,5.87307]
[1625256578351,1.0,2093.2,2092.4,2.20527]
[1625256578494,68.9067,2093.3,2092.4,2.20527]
[1625256580297,2.20527,2092.5,2092.4,2.20527]
[1625256580398,50.78837,2092.5,2092.4,2.20527]
[1625256580500,2.20527,2092.5,2092.4,2.20527]
[1625256580950,2.20527,2092.6,2092.4,2.20527]
[1625256580951,1.0,2093.0,2092.4,2.20527]
[1625256581050,48.5831,2092.6,2092.4,2.20527]
[1625256582302,50.78837,2092.6,2092.4,2.20527]
[1625256583907,48.5831,2092.6,2092.4,2.20527]
[1625256584157,2.20527,2092.8,2092.4,2.20527]
[1625256584658,55.9131,2092.7,2092.4,2.20527]
[1625256584861,2.20527,2092.8,2092.4,2.20527]
[1625256587068,2.20527,2092.8,2092.4,5.75037]
[1625256587168,1.0,2093.2,2092.4,5.75037]
[1625256587269,68.9067,2093.3,2092.4,5.75037]
[1625256587579,16.7566,2093.4,2092.4,5.75037]
[1625256587729,15.7566,2093.4,2092.4,5.75037]
[1625256587829,4.759,2093.9,2092.4,5.75037]
[1625256588332,2.20527,2093.8,2093.6,2.20527]
[1625256588432,2.20527,2093.8,2093.6,5.73307]
[1625256592421,4.55467,2093.8,2093.6,2.20527]
[1625256592621,4.55467,2093.8,2093.4,2.20527]
[1625256592773,4.55467,2093.8,2091.0,1.39232404]
[1625256592875,1.0,2093.7,2091.0,1.39232404]
[1625256592979,42.0295,2093.2,2091.0,1.39232404]
[1625256593074,42.0295,2093.2,2090.7,4.759]
[1625256593075,1.0,2093.1,2090.7,6.15302149]
[1625256593221,1.0,2093.1,2091.6,47.4058]
[1625256593622,1.0,2093.1,2091.6,42.4058]
[1625256593823,1.0,2093.1,2090.7,4.759]
[1625256593924,1.0,2093.1,2090.7,5.759]
[1625256594229,1.0,2093.1,2091.1,5.0]
[1625256594429,2.20527,2093.0,2091.3,40.7658]
[1625256594530,1.0,2092.9,2091.3,40.7658]
[1625256595733,3.20527,2093.0,2091.3,40.7658]
[1625256596386,2.20527,2092.7,2092.1,2.20527]
[1625256596487,5.97777,2092.7,2092.1,2.20527]
[1625256598435,5.97777,2092.7,2092.6,2.20527]
[1625256600590,3.7725,2092.7,2092.6,2.20527]
[1625256600890,1.0,2093.7,2092.6,2.20527]
[1625256600990,58.1792,2093.8,2092.6,2.20527]
[1625256601142,57.2284,2093.8,2092.6,2.20527]
[1625256601243,62.1239,2093.3,2092.6,2.20527]
[1625256601391,3.3736,2093.3,2092.6,2.20527]
[1625256602146,58.7503,2093.2,2092.6,2.20527]
[1625256602443,58.7503,2093.2,2093.1,2.20527]
[1625256602444,60.95557,2093.2,2093.1,2.20527]
[1625256602944,63.70837,2093.2,2092.6,2.20527]
[1625256603345,4.95807,2093.2,2092.6,2.20527]
[1625256603844,56.02787,2093.2,2092.6,2.20527]
[1625256604496,56.02787,2093.2,2092.6,4.41054]
[1625256604945,4.95807,2093.2,2092.6,4.41054]
[1625256606848,52.8112,2093.1,2092.6,4.41054]
[1625256608550,2.20527,2092.8,2092.6,4.41054]
[1625256608652,58.4396,2092.7,2092.6,4.41054]
[1625256608754,61.8148,2092.7,2092.6,4.41054]
[1625256608852,3.3752,2092.7,2092.6,4.41054]
[1625256611358,3.3752,2092.7,2092.6,2.20527]
[1625256611458,3.3752,2092.7,2091.4,29.366]
[1625256611807,3.3752,2092.7,2091.4,14.7644]
[1625256612162,58.3949,2092.2,2091.4,14.7644]
[1625256612309,60.8272,2092.2,2090.8,5.0]
[1625256612609,60.8272,2092.2,2092.1,2.20527]
[1625256613364,2.4323,2092.2,2092.1,2.20527]
[1625256613915,58.2197,2092.2,2092.1,2.20527]
[1625256614572,60.42497,2092.2,2092.1,2.20527]
[1625256615124,4.63757,2092.2,2092.1,2.20527]
[1625256621748,4.63757,2092.2,2090.8,54.7247]
[1625256621847,1.0,2092.1,2090.8,54.7247]
[1625256622598,1.0,2092.1,2091.8,2.20527]
[1625256622699,4.63757,2092.2,2091.8,2.20527]
[1625256623851,43.6401,2091.9,2091.8,2.20527]
[1625256624051,4.63757,2092.2,2091.8,2.20527]
[1625256624653,2.20527,2091.9,2091.8,2.20527]
[1625256626611,4.63757,2092.2,2091.8,2.20527]
[1625256627360,2.4323,2092.2,2091.8,2.20527]
[1625256627463,4.60587469,2092.6,2091.8,2.20527]
[1625256627560,3.60587469,2092.6,2091.8,2.20527]
[1625256627962,2.20527,2092.6,2091.8,2.20527]
[1625256628712,4.41054,2092.6,2092.1,2.20527]
[1625256629765,43.1554,2092.7,2092.1,2.20527]
[1625256630715,2.20527,2092.6,2092.4,2.20527]
[1625256631415,2.20527,2092.6,2092.1,2.20527]
[1625256631975,5.35737,2092.6,2092.1,2.20527]
[1625256632670,2.20527,2092.2,2092.1,2.20527]
[1625256633634,60.90777,2092.2,2092.1,2.20527]
[1625256634137,2.20527,2092.2,2092.1,2.20527]
[1625256634841,43.12027,2092.2,2092.1,2.20527]
[1625256634940,2.20527,2092.2,2092.1,2.20527]
[1625256635997,61.23067,2092.2,2092.1,2.20527]
[1625256636347,1.40187337,2092.5,2092.1,2.20527]
[1625256640757,2.20527,2092.3,2092.1,2.20527]
[1625256640860,48.3169,2092.2,2092.1,2.20527]
[1625256642363,2.20527,2092.3,2092.1,2.20527]
[1625256644320,48.20067,2092.3,2092.1,2.20527]
[1625256644417,2.20527,2092.3,2092.1,2.20527]
[1625256644877,45.9998,2092.2,2092.1,2.20527]
[1625256644973,2.20527,2092.3,2092.1,2.20527]
[1625256645869,1.40356832,2092.5,2092.1,2.20527]
[1625256646170,4.17026565,2092.6,2092.1,2.20527]
[1625256646171,3.60937192,2092.6,2092.1,2.20527]
[1625256646823,3.60937192,2092.6,2092.5,2.20527]
[1625256647439,61.47037192,2092.6,2092.5,2.20527]
[1625256648225,61.47037192,2092.6,2091.0,16.88723233]
[1625256648326,1.0,2092.5,2091.0,14.4797]
[1625256648727,1.40396438,2092.3,2091.0,14.4797]
[1625256648877,51.35737,2092.1,2092.0,2.20527]
[1625256649028,54.18217,2092.1,2092.0,2.20527]
[1625256649226,5.03007,2092.1,2092.0,2.20527]
[1625256650685,52.42357,2092.1,2092.0,2.20527]
[1625256651584,53.82804847,2092.1,2092.0,2.20527]
[1625256653648,6.43454847,2092.1,2092.0,2.20527]
[1625256654800,66.15084847,2092.1,2092.0,2.20527]
[1625256655351,66.71349786,2092.1,2092.0,2.20527]
[1625256655602,6.99719786,2092.1,2092.0,2.20527]
[1625256656805,9.20246786,2092.1,2092.0,2.20527]
[1625256657106,8.64016648,2092.1,2092.0,2.20527]
[1625256658612,52.26026648,2092.1,2092.0,2.20527]
[1625256658711,52.26026648,2092.1,2091.8,2.20527]
[1625256658964,53.66315108,2092.1,2091.8,2.20527]
[1625256659320,1.96512759,2091.9,2091.8,2.20527]
[1625256661116,1.96512759,2091.9,2091.3,2.20527]
[1625256661217,1.96512759,2091.9,2091.0,14.4797]
[1625256661218,1.96512759,2091.9,2090.7,15.8372]
[1625256661316,1.0,2091.8,2090.7,15.8372]
[1625256661466,1.0,2091.8,2090.5,1.40936099]
[1625256661668,42.833,2091.3,2090.3,1.40947622]
[1625256661768,45.3051,2091.3,2090.3,1.40947622]
[1625256662519,45.3051,2091.3,2090.2,1.40948079]
[1625256662870,47.51037,2091.3,2091.2,2.20527]
[1625256664172,4.67737,2091.3,2091.2,2.20527]
[1625256664275,2.20527,2091.3,2091.2,2.20527]
[1625256664422,1.40200268,2091.5,2091.2,2.20527]
[1625256664827,2.20527,2091.5,2091.2,2.20527]
[1625256666025,48.26847,2091.5,2091.2,2.20527]
[1625256666175,2.20527,2091.5,2091.2,2.20527]
[1625256668328,61.55317,2091.5,2091.2,2.20527]
[1625256668829,61.55317,2091.5,2091.4,2.20527]
[1625256670132,2.20527,2091.5,2091.4,2.20527]
[1625256672550,2.20527,2091.5,2091.4,4.58057]
[1625256672701,1.40317835,2091.9,2091.4,4.58057]
[1625256672903,17.942133,2092.0,2091.8,2.20527]
[1625256673000,1.403533,2092.0,2091.8,2.20527]
[1625256673201,1.40357217,2092.1,2091.8,2.20527]
[1625256674905,1.40357217,2092.1,2091.8,4.41054]
[1625256677860,3.60818206,2092.2,2091.8,4.41054]
[1625256678814,46.5394,2092.0,2091.8,4.41054]
[1625256678914,2.20527,2092.2,2091.8,4.41054]
[1625256680520,3.60934975,2092.2,2091.8,4.41054]
[1625256680919,3.60934975,2092.2,2092.1,2.20527]
[1625256681522,2.20527,2092.2,2092.1,2.20527]
[1625256681621,55.60807,2092.2,2092.1,2.20527]
[1625256681874,58.41544479,2092.2,2092.1,2.20527]
[1625256682175,58.41544479,2092.2,2091.8,1.22507]
[1625256682274,62.20744479,2092.2,2090.7,30.1423]
[1625256682374,1.0,2092.1,2090.7,30.1423]
[1625256682878,1.40356845,2091.6,2090.7,30.1423]
[1625256682977,3.60883845,2091.6,2091.5,2.20527]
[1625256683226,2.20527,2091.6,2091.5,2.20527]
[1625256683675,1.4037896,2091.8,2091.5,2.20527]
[1625256684178,1.40393251,2091.7,2091.5,2.20527]
[1625256684980,3.60920251,2091.7,2091.5,2.20527]
[1625256687083,1.40361665,2091.6,2091.1,2.20527]
[1625256687434,3.6089937,2091.7,2091.1,2.20527]
[1625256688789,1.40367534,2091.6,2091.1,2.20527]
[1625256688987,2.20527,2091.2,2091.1,2.20527]
[1625256691953,1.40437376,2091.6,2091.1,2.20527]
[1625256692053,1.40437376,2091.6,2091.1,5.66287]
[1625256692255,2.20527,2091.7,2091.1,5.66287]
[1625256692508,1.40508756,2091.8,2091.1,5.66287]
[1625256692955,1.40508756,2091.8,2091.7,2.20527]
[1625256693057,3.37270181,2091.9,2091.7,5.47597]
[1625256694159,5.01673431,2092.1,2091.7,5.47597]
[1625256694160,3.37427575,2092.0,2091.7,5.47597]
[1625256695010,3.37427575,2092.0,2091.9,2.20527]
[1625256695165,6.18986586,2092.2,2091.9,2.20527]
[1625256695362,5.58231656,2092.3,2091.9,2.20527]
[1625256696063,2.20527,2092.3,2091.9,2.20527]
[1625256697013,2.20527,2092.3,2092.2,2.20527]
[1625256697615,8.39904611,2092.3,2092.2,2.20527]
[1625256699472,2.20527,2092.3,2092.2,2.20527]
[1625256699922,2.20527,2092.3,2092.2,4.70357]
[1625256700526,6.19607447,2092.4,2092.2,4.70357]
[1625256700779,6.19865268,2092.5,2092.2,4.70357]
[1625256700977,6.19785343,2092.4,2092.2,4.70357]
[1625256701074,6.19785343,2092.4,2092.3,2.20527]
[1625256701426,8.40350939,2092.5,2092.3,2.20527]
[1625256701627,6.1980582,2092.4,2092.3,2.20527]
[1625256702577,6.19951059,2092.5,2092.3,2.20527]
[1625256702677,6.19951059,2092.5,2092.3,5.36227]
[1625256706088,6.19951059,2092.5,2092.3,2.20527]
[1625256707656,9.71141059,2092.5,2092.3,2.20527]
[1625256709059,2.20527,2092.4,2092.3,2.20527]
[1625256709660,5.86623138,2092.4,2092.3,2.20527]
[1625256710212,5.86623138,2092.4,2092.2,2.20527]
[1625256710508,46.4284,2092.3,2092.2,2.20527]
[1625256710861,47.3825,2092.3,2092.2,2.20527]
[1625256711062,49.58777,2092.3,2092.2,2.20527]
[1625256711409,52.29399217,2092.3,2092.2,2.20527]
[1625256712565,48.63367,2092.3,2092.2,2.20527]
[1625256718636,48.63367,2092.3,2091.1,1.41140572]
[1625256718786,54.63367,2092.3,2091.0,1.95137373]
[1625256718887,56.05033627,2092.3,2091.0,1.95137373]
[1625256718987,4.22148286,2091.8,2090.7,1.41173102]
[1625256719086,4.41054,2090.8,2090.7,1.41173102]
[1625256719290,7.45304,2090.8,2090.7,1.41173102]
[1625256719389,7.45304,2090.8,2090.5,2.20527]
[1625256721790,7.45304,2090.8,2090.2,2.20527]
[1625256722595,7.45304,2090.8,2090.0,0.05]
[1625256723095,2.20527,2090.3,2090.0,0.05]
[1625256723195,5.82417,2090.3,2090.0,0.05]
[1625256725170,5.82417,2090.3,2090.0,2.25527]
[1625256725358,5.82417,2090.3,2090.0,0.05]
[1625256728378,46.2548,2090.1,2090.0,0.05]
[1625256729131,48.46007,2090.1,2090.0,0.05]
[1625256730985,2.20527,2090.1,2090.0,0.05]
[1625256741503,5.86227,2090.1,2090.0,0.05]
[1625256748131,58.35297,2090.1,2090.0,0.05]
[1625256750385,5.86227,2090.1,2090.0,0.05]
[1625256750537,6.81317,2090.1,2090.0,0.05]
[1625256750635,5.86227,2090.1,2090.0,0.05]
[1625256750939,48.83787,2090.1,2090.0,0.05]
[1625256755622,5.86227,2090.1,2090.0,0.05]
[1625256755721,2.20527,2090.1,2090.0,0.05]
[1625256760837,45.43477,2090.1,2090.0,0.05]
[1625256761997,2.20527,2090.1,2090.0,0.05]
[1625256764353,51.33787,2090.1,2090.0,0.05]
[1625256769876,53.85517,2090.1,2090.0,0.05]
[1625256775145,2.20527,2090.1,2090.0,0.05]
[1625256776997,2.20527,2090.3,2090.0,0.05]
[1625256777097,16.7891,2091.1,2090.0,0.05]
[1625256777398,2.20527,2091.4,2091.0,4.41054]
[1625256777497,2.20527,2091.4,2091.0,7.92054]
[1625256779454,2.20527,2091.4,2091.3,2.20527]
[1625256780704,61.28757,2091.4,2091.3,2.20527]
[1625256781708,2.20527,2091.4,2091.3,2.20527]
[1625256786025,54.16837,2091.4,2091.3,2.20527]
[1625256786126,2.20527,2091.4,2091.3,2.20527]
[1625256788435,54.64087,2091.4,2091.3,2.20527]
[1625256788935,2.20527,2091.4,2091.3,2.20527]
[1625256789493,56.85477,2091.4,2091.3,2.20527]
[1625256789939,56.85477,2091.4,2090.0,14.9391]
[1625256790041,4.3243,2091.3,2090.0,14.9391]
[1625256790593,4.3243,2091.3,2090.0,0.05]
[1625256791596,4.3243,2091.3,2090.8,2.20527]
[1625256791696,3.3243,2091.3,2090.8,2.20527]
[1625256792050,51.0495,2090.9,2090.8,2.20527]
[1625256793553,53.25477,2090.9,2090.8,2.20527]
[1625256794453,53.25477,2090.9,2090.0,0.05]
[1625256795106,51.2374,2090.1,2090.0,0.05]
[1625256795206,54.8405,2090.1,2090.0,0.05]
[1625256795558,54.8405,2090.1,2090.0,4.46054]
[1625256797159,3.6031,2090.1,2090.0,4.46054]
[1625256797260,2.20527,2090.2,2090.0,4.46054]
[1625256799312,51.0804,2090.1,2090.0,4.46054]
[1625256799462,3.6535,2090.1,2090.0,4.46054]
[1625256802181,45.1327,2090.1,2090.0,4.46054]
[1625256802883,3.6535,2090.1,2090.0,4.46054]
[1625256804383,2.20527,2090.2,2090.0,4.46054]
[1625256810702,2.20527,2090.4,2090.0,4.46054]
[1625256810852,2.20527,2090.4,2090.0,7.21354]
[1625256811406,2.81597676,2090.9,2090.0,7.21354]
[1625256811705,2.20527,2090.9,2090.8,4.41054]
[1625256821253,6.02044728,2091.2,2090.8,4.41054]
[1625256821354,5.02044728,2091.2,2090.8,4.41054]
[1625256821604,2.20527,2091.2,2090.8,4.41054]
[1625256821703,2.20527,2091.2,2091.1,2.20527]
[1625256837806,5.07011128,2091.4,2091.1,2.20527]
[1625256838260,2.25527,2091.4,2091.1,2.20527]
[1625256838460,2.80999481,2091.5,2091.3,48.8403]
[1625256838609,2.80999481,2091.5,2091.1,2.20527]
[1625256838712,2.81171193,2091.7,2091.1,2.20527]
[1625256839214,2.81233299,2091.9,2091.1,2.20527]
[1625256839311,3.81233299,2091.9,2091.1,2.20527]
[1625256839862,3.81233299,2091.9,2091.8,2.20527]
[1625256839963,2.81233299,2091.9,2091.8,2.20527]
[1625256840274,47.01823299,2091.9,2091.8,2.20527]
[1625256840566,44.2059,2091.9,2091.8,2.20527]
[1625256840967,47.01771144,2091.9,2091.8,2.20527]
[1625256841868,2.81181144,2091.9,2091.8,2.20527]
[1625256843471,59.16411144,2091.9,2091.8,2.20527]
[1625256844324,2.20527,2092.0,2091.8,2.20527]
[1625256844325,5.01747288,2092.0,2091.8,2.20527]
[1625256844528,2.20527,2092.0,2091.8,2.20527]
[1625256845030,7.57177751,2092.1,2091.8,2.20527]
[1625256845339,4.759,2092.1,2091.8,2.20527]
[1625256845892,4.759,2092.1,2092.0,2.20527]
[1625256845993,4.759,2092.1,2092.0,5.72907]
[1625256847044,0.0001,2092.1,2092.0,5.72907]
[1625256847145,0.0001,2092.1,2092.0,60.38757]
[1625256847345,2.81484068,2092.6,2092.0,60.38757]
[1625256847646,2.81572669,2092.8,2092.0,60.38757]
[1625256847898,2.81572669,2092.8,2092.7,4.41054]
[1625256847998,2.81427482,2092.9,2092.7,7.85974]
[1625256848201,2.81448099,2093.1,2092.7,7.85974]
[1625256848551,2.8144761,2093.0,2092.7,7.85974]
[1625256848900,2.81438047,2093.1,2092.7,7.85974]
[1625256849800,2.81245018,2093.2,2092.7,7.85974]
[1625256849899,2.81245018,2093.2,2093.1,2.20527]
[1625256851805,55.653466,2093.3,2093.1,2.20527]
[1625256851905,55.653466,2093.3,2093.2,2.20527]
[1625256853269,52.84267,2093.3,2093.2,2.20527]
[1625256853767,55.65345733,2093.3,2093.2,2.20527]
[1625256854067,52.84267,2093.3,2093.2,2.20527]
[1625256855720,52.84267,2093.3,2091.9,1.0]
[1625256855875,1.0,2093.2,2091.5,29.6717]
[1625256856021,1.0,2093.2,2092.8,2.20527]
[1625256856120,55.46777,2093.3,2092.8,2.20527]
[1625256856371,2.80825358,2093.1,2092.8,2.20527]
[1625256856621,2.80645393,2093.2,2092.8,2.20527]
[1625256856722,55.4688,2092.9,2092.8,2.20527]
[1625256858028,57.67407,2092.9,2092.8,2.20527]
[1625256859733,2.20527,2092.9,2092.8,2.20527]
[1625256861102,59.98867,2092.9,2092.8,2.20527]
[1625256862108,2.20527,2092.9,2092.8,2.20527]
[1625256864264,56.36597,2092.9,2092.8,2.20527]
[1625256864366,2.20527,2092.9,2092.8,2.20527]
[1625256864916,2.20527,2092.9,2092.8,4.78297]
[1625256865217,3.80611659,2093.5,2092.8,4.78297]
[1625256865867,1.0,2093.5,2092.8,4.78297]
[1625256866069,3.20527,2093.5,2093.4,2.20527]
[1625256866167,2.20527,2093.5,2093.4,2.20527]
[1625256866478,5.01120727,2093.5,2093.4,1.07237421]
[1625256867076,5.01120727,2093.5,2092.8,2.20527]
[1625256867175,44.1838,2092.9,2092.8,2.20527]
[1625256867427,6.01120727,2093.5,2092.8,2.20527]
[1625256867526,6.01120727,2093.5,2092.8,4.89587]
[1625256867727,2.20527,2093.7,2092.8,4.89587]
[1625256867981,2.20527,2093.7,2092.9,50.6247]
[1625256868080,2.20527,2093.7,2093.6,4.41054]
[1625256868181,2.20527,2093.7,2093.6,7.04714]
[1625256869332,47.23797,2093.7,2093.6,7.04714]
[1625256871184,47.23797,2093.7,2093.6,4.41054]
[1625256873693,2.20527,2093.7,2093.6,4.41054]
[1625256875867,59.74997,2093.7,2093.6,4.41054]
[1625256879090,62.48147,2093.7,2093.6,2.20527]
[1625256880097,62.48147,2093.7,2093.0,2.20527]
[1625256880393,63.48147,2093.7,2093.0,2.20527]
[1625256880844,51.6568,2093.1,2093.0,2.20527]
[1625256882105,53.86207,2093.1,2093.0,2.20527]
[1625256888220,53.86207,2093.1,2092.8,2.20527]
[1625256890168,2.20527,2092.9,2092.8,2.20527]
[1625256901917,5.63417,2092.9,2092.8,2.20527]
[1625256908866,5.63417,2092.9,2092.4,2.20527]
[1625256908966,5.63417,2092.9,2091.6,14.9656]
[1625256909066,1.0,2092.8,2090.8,1.0]
[1625256909167,1.0,2092.8,2090.5,14.5474]
[1625256909417,1.96568085,2092.7,2090.5,14.5474]
[1625256909518,1.0,2092.6,2090.5,14.5474]
[1625256909617,46.7162,2091.8,2090.5,14.5474]
[1625256909720,50.0448,2091.8,2090.5,14.5474]
[1625256909820,51.0448,2091.8,2090.5,14.5474]
[1625256910270,2.20527,2091.6,2091.5,2.20527]
[1625256912322,4.41054,2091.6,2091.3,2.20527]
[1625256912772,40.4941,2091.4,2091.3,2.20527]
[1625256914223,40.4941,2091.4,2091.0,2.20527]
[1625256914377,6.91074,2091.1,2090.7,2.20527]
[1625256914977,41.7159,2090.8,2090.7,2.20527]
[1625256916329,43.92117,2090.8,2090.7,2.20527]
[1625256917482,43.92117,2090.8,2090.0,14.6564]
[1625256917584,44.92117,2090.8,2090.0,0.05]
[1625256918338,4.41054,2090.1,2090.0,0.05]
[1625256924083,7.94674,2090.1,2090.0,0.05]
[1625256939851,7.94674,2090.1,2089.3,2.20527]
[1625256940066,44.7898,2089.4,2089.3,2.20527]
[1625256940250,1.0,2090.0,2089.3,2.20527]
[1625256940351,7.94674,2090.1,2089.3,2.20527]
[1625256940452,2.20527,2089.4,2089.3,2.20527]
[1625256940551,4.41054,2089.4,2089.3,2.20527]
[1625256941154,45.09054,2089.4,2089.3,2.20527]
[1625256941953,4.41054,2089.4,2089.3,2.20527]
[1625256943156,51.55544,2089.4,2089.3,2.20527]
[1625256943557,4.41054,2089.4,2089.3,2.20527]
[1625256955475,4.41054,2089.4,2089.1,2.20527]
[1625256957628,7.51824,2089.4,2089.1,2.20527]
[1625256959682,7.51824,2089.4,2088.7,2.20527]
[1625256960585,4.41054,2088.8,2088.7,2.20527]
[1625256960686,7.86924,2088.8,2088.7,2.20527]
[1625256961835,7.86924,2088.8,2088.5,2.20527]
[1625256962038,43.09,2088.6,2088.5,2.20527]
[1625256963887,7.86924,2088.8,2088.5,2.20527]
[1625256964388,48.7787,2088.7,2088.5,2.20527]
[1625256965996,48.7787,2088.7,2087.7,15.2702]
[1625256966301,48.7787,2088.7,2087.1,1.0]
[1625256966399,1.0,2088.6,2087.1,1.0]
[1625256966697,2.20527,2087.9,2087.8,2.20527]
[1625256967347,64.69527,2087.9,2087.8,2.20527]
[1625256967701,5.55537,2087.9,2087.8,2.20527]
[1625256968450,2.20527,2087.9,2087.8,2.20527]
[1625256968650,4.41054,2087.9,2087.8,2.20527]
[1625256970002,1.0,2088.6,2087.8,2.20527]
[1625256970103,48.7787,2088.7,2087.8,2.20527]
[1625256970654,2.20527,2087.9,2087.8,2.20527]
[1625256971353,0.9509,2089.6,2087.8,2.20527]
[1625256971460,1.05,2088.9,2087.8,4.78557]
[1625256971612,0.05,2088.9,2087.8,4.78557]
[1625256971858,0.05,2088.9,2088.5,47.602]
[1625256971958,0.05,2088.9,2088.5,51.2295]
[1625256972159,47.6672,2089.9,2088.5,51.2295]
[1625256972508,1.0,2089.8,2088.5,51.2295]
[1625256972658,2.20527,2089.0,2088.8,2.20527]
[1625256974362,1.0,2089.8,2088.8,2.20527]
[1625256974461,58.2676,2090.1,2088.8,2.20527]
[1625256974565,1.0,2090.0,2088.8,2.20527]
[1625256974666,2.20527,2089.8,2089.6,2.20527]
[1625256974764,19.6404,2090.7,2089.6,2.20527]
[1625256974765,14.6404,2090.7,2089.6,2.20527]
[1625256974913,14.6404,2090.7,2089.6,5.47197]
[1625256975665,15.6404,2090.7,2089.6,5.47197]
[1625256976671,2.20527,2090.0,2089.9,2.20527]
[1625256986013,4.94877,2090.0,2089.9,2.20527]
[1625256990331,4.94877,2090.0,2088.4,1.0]
[1625256990430,1.0,2089.9,2088.2,1.4024003]
[1625256990533,1.0,2089.9,2088.0,32.32332631]
[1625256990682,1.0,2089.9,2088.1,0.18304502]
[1625256990782,5.90047,2089.1,2089.0,2.20527]
[1625256991342,56.35727,2089.1,2089.0,2.20527]
[1625256992593,5.90047,2089.1,2089.0,2.20527]
[1625256992842,8.10574,2089.1,2089.0,2.20527]
[1625256994296,8.10574,2089.1,2088.0,15.5106]
[1625256994395,57.8512,2088.9,2088.0,15.5106]
[1625256994548,58.7963,2088.9,2087.2,14.8375]
[1625256994699,1.0,2088.8,2087.2,14.8375]
[1625256994797,4.78517,2088.1,2088.0,2.20527]
[1625256995146,62.63087,2088.1,2088.0,2.20527]
[1625256995500,4.78517,2088.1,2088.0,2.20527]
[1625256996807,6.99044,2088.1,2088.0,2.20527]
[1625256999564,62.87434,2088.1,2088.0,2.20527]
[1625257003368,62.87434,2088.1,2087.7,2.20527]
[1625257004677,62.87434,2088.1,2087.1,1.0]
[1625257004777,1.0,2088.0,2087.1,1.0]
[1625257004875,2.20527,2087.4,2087.3,2.20527]
[1625257004974,5.45037,2087.4,2087.3,2.20527]
[1625257005733,5.45037,2087.4,2087.1,3.20527]
[1625257006388,5.45037,2087.4,2086.0,17.26547573]
[1625257006487,1.0,2087.3,2086.0,1.40717573]
[1625257006638,1.0,2087.3,2085.9,1.40756866]
[1625257006742,50.9667,2086.2,2085.9,1.40756866]
[1625257006839,4.41054,2086.0,2085.9,1.40756866]
[1625257006939,8.15294,2086.0,2085.9,1.40756866]
[1625257007140,8.15294,2086.0,2085.9,0.61676866]
[1625257007243,8.15294,2086.0,2085.6,1.40778049]
[1625257007391,8.15294,2086.0,2085.5,1.97089269]
[1625257007491,8.15294,2086.0,2085.4,5.02083098]
[1625257007843,8.15294,2086.0,2084.8,2.0]
[1625257007992,58.8287,2085.5,2084.8,2.0]
[1625257008897,2.20527,2085.0,2084.9,2.20527]
[1625257009397,1.0,2085.5,2084.9,2.20527]
[1625257009554,1.40471899,2088.4,2084.9,4.88817]
[1625257009651,14.9804,2087.3,2084.9,4.88817]
[1625257009803,79.0302,2087.1,2084.9,4.88817]
[1625257010248,17.327728,2087.0,2084.9,49.04957]
[1625257010601,17.327728,2087.0,2084.9,4.88817]
[1625257010702,18.287028,2087.0,2084.9,4.88817]
[1625257010852,2.20527,2085.3,2085.2,2.20527]
[1625257011301,2.20527,2085.3,2084.9,2.20527]
[1625257011703,5.78297,2085.3,2084.9,2.20527]
[1625257012903,7.98824,2085.3,2085.2,2.20527]
[1625257013502,3.5777,2085.3,2085.2,2.20527]
[1625257014204,53.6373,2086.1,2085.2,2.20527]
[1625257014354,52.6373,2086.1,2085.2,2.20527]
[1625257014856,4.41054,2085.3,2085.2,2.20527]
[1625257015206,1.0,2086.0,2085.2,2.20527]
[1625257015306,5.0,2087.7,2085.2,2.20527]
[1625257015406,1.0,2086.8,2085.2,2.20527]
[1625257016558,3.4338,2086.8,2085.2,2.20527]
[1625257016860,2.20527,2085.8,2085.2,4.41054]
[1625257018363,2.20527,2085.8,2085.2,2.20527]
[1625257018914,4.41054,2085.3,2085.2,2.20527]
[1625257019064,6.72894,2085.3,2085.2,2.20527]
[1625257019866,6.72894,2085.3,2084.8,4.20527]
[1625257020968,6.72894,2085.3,2085.1,2.20527]
[1625257021720,4.41054,2085.3,2085.1,2.20527]
[1625257022069,1.0,2086.0,2085.1,2.20527]
[1625257022172,1.0,2086.6,2085.1,2.20527]
[1625257022870,1.0,2086.6,2085.3,52.4877]
[1625257023020,1.0,2086.6,2085.8,4.68647]
[1625257023121,5.0,2087.6,2085.8,4.68647]
[1625257023377,1.9603,2087.5,2085.8,4.68647]